[Event "Turkish Cup 2022"]
[Site "Sakarya"]
[Date "2022.03.26"]
[Round "2.46"]
[White "Once, Ahmet Asim"]
[Black "Gazioglu, Halit"]
[Result "0-1"]
[ECO "D11"]
[WhiteElo "1450"]
[BlackElo "1880"]
[Annotator "NA RC"]
[PlyCount "136"]
[EventDate "2022.03.25"]
[EventType "swiss"]
[EventCountry "TUR"]
[SourceTitle "playchess.com"]
[Source "ChessBase"]
[SourceQuality "1"]
[TimeControl "5400+30"]

1. d4 {[%emt 0:01:00]} d5 {[%emt 0:01:00]} 2. Nf3 {[%emt 0:00:30]} Nf6 {[%emt 0:00:30]} 3. g3 {[%emt 0:00:00]} Bf5 {[%emt 0:03:30]} 4. Bg2 {[%emt 0:01:00]} h6 {[%emt 0:00:30]} 5. O-O {[%emt 0:00:30]} Nbd7 {[%emt 0:00:30]} 6. b3 {[%emt 0:00:30]} e6 {[%emt 0:00:30]} 7. Bb2 {[%emt 0:01:30]} Be7 {[%emt 0:02:30]} 8. Nbd2 {[%emt 0:01:30]} O-O {[%emt 0:00:30]} 9. c4 {[%emt 0:02:30]} c6 {[%emt 0:00:30]} 10. Rc1 {[%emt 0:04:30]} Qa5 {[%emt 0:03:30]} 11. a3 {[%emt 0:01:30]} Rac8 {[%emt 0:03:30]} 12. b4 {[%emt 0:08:30]} Qa6 {[%emt 0:01:30]} 13. Qb3 {[%emt 0:05:30]} b5 {[%emt 0:14:30]} 14. c5 {[%emt 0:06:30]} Qb7 {[%emt 0:08:30]} 15. Ne5 {[%emt 0:10:30]} Ra8 {[%emt 0:09:30]} 16. h3 {[%emt 0:15:30]} a5 {[%emt 0:01:30]} 17. g4 {[%emt 0:02:30]} Bh7 {[%emt 0:00:30]} 18. Ra1 {[%emt 0:07:30]} Ra6 {[%emt 0:09:30]} 19. f4 {[%emt 0:04:30]} Rfa8 {[%emt 0:01:30]} 20. g5 {[%emt 0:06:58]} Nxe5 {[%emt 0:08:30]} 21. gxf6 {[%emt 0:05:45]} Nc4 {[%emt 0:01:30]} 22. Nxc4 {[%emt 0:07:32]} bxc4 {[%emt 0:00:00]} 23. Qe3 {[%emt 0:00:10]} Bxf6 {[%emt 0:00:00]} 24. Bc3 {[%emt 0:00:20]} axb4 {[%emt 0:01:30]} 25. Bxb4 {[%emt 0:00:51]} Bf5 {[%emt 0:00:30]} 26. Rfd1 {[%emt 0:01:09]} Qb5 {[%emt 0:02:30]} 27. Qc3 {[%emt 0:01:30]} Qa4 {[%emt 0:00:30]} 28. e3 {[%emt 0:01:48]} Qb3 {[%emt 0:01:30]} 29. Qxb3 {[%emt 0:01:02]} cxb3 {[%emt 0:00:30]} 30. Rd2 {[%emt 0:00:22]} Bc2 {[%emt 0:02:30]} 31. Re1 {[%emt 0:01:51]} Bh4 {[%emt 0:03:00]} 32. Rf1 {[%emt 0:00:27]} Bd8 {[%emt 0:00:22]} 33. Rxc2 {[%emt 0:01:07]} bxc2 {[%emt 0:00:30]} 34. Rc1 {[%emt 0:00:00]} Ba5 {[%emt 0:04:51]} 35. Rxc2 {[%emt 0:00:41]} Bxb4 {[%emt 0:00:07]} 36. axb4 {[%emt 0:00:29]} Ra1+ {[%emt 0:00:06]} 37. Bf1 {[%emt 0:00:17]} Rb1 {[%emt 0:00:36]} 38. b5 {[%emt 0:00:49]} cxb5 {[%emt 0:00:11]} 39. c6 {[%emt 0:00:06]} Rc8 {[%emt 0:00:31]} 40. Kf2 {[%emt 0:01:07]} Kf8 {[%emt 0:00:21]} 41. c7 {[%emt 0:00:03]} Ke7 {[%emt 0:00:35]} 42. Rc5 {[%emt 0:00:16]} Kd6 {[%emt 0:00:24]} 43. Bxb5 {[%emt 0:01:07]} Rxc7 {[%emt 0:00:10]} 44. Rxc7 {[%emt 0:00:34]} Kxc7 {[%emt 0:00:30]} 45. Be8 {[%emt 0:00:00]} f6 {[%emt 0:00:28]} 46. Bg6 {[%emt 0:00:00]} Rb2+ {[%emt 0:00:22]} 47. Kf3 {[%emt 0:00:22]} Kd6 {[%emt 0:00:12]} 48. h4 {[%emt 0:00:05]} Ke7 {[%emt 0:02:30]} 49. h5 {[%emt 1:52:45]} f5 {[%emt 1:45:38]} 50. Kg3 {[%emt 0:00:30]} Re2 {[%emt 0:00:30]} 51. Kf3 {[%emt 0:00:30]} Rh2 {[%emt 0:00:30]} 52. Kg3 {[%emt 0:00:30]} Rh1 {[%emt 0:00:30]} 53. Kg2 $19 {[%emt 0:00:30]} Rh4 {[%emt 0:00:30]} 54. Kf3 {[%emt 0:00:30]} Rh3+ {[%emt 0:00:30]} 55. Kf2 {[%emt 0:00:30]} Kf8 {[%emt 0:03:38]} 56. Ke2 {[%emt 0:00:39]} Rg3 {[%emt 0:02:05]} 57. Bh7 {[%emt 0:01:00]} g5 {[%emt 0:00:18]} 58. fxg5 {[%emt 0:01:34]} Rxg5 {[%emt 0:00:55]} 59. Kf3 {[%emt 0:00:30]} Rxh5 {[%emt 0:00:16]} 60. Kf4 {[%emt 0:00:51]} Kg7 {[%emt 0:00:30]} 61. Ke5 {[%emt 0:00:00]} Kxh7 {[%emt 0:00:35]} 62. Kxe6 {[%emt 0:00:00]} Kg7 {[%emt 0:00:02]} 63. Kxd5 {[%emt 0:00:34]} f4+ {[%emt 0:00:13]} 64. Ke4 {[%emt 0:00:12]} fxe3 {[%emt 0:00:30]} 65. Kxe3 {[%emt 0:00:00]} Rh4 {[%emt 0:00:24]} 66. Kd3 {[%emt 0:00:01]} Kf6 {[%emt 0:00:00]} 67. Ke3 {[%emt 0:00:10]} Ke6 {[%emt 0:00:15]} 68. Kd3 {[%emt 0:00:00]} Kd5 {[%emt 0:00:00]} 0-1

[Event "Turkish Cup 2022"]
[Site "Sakarya"]
[Date "2022.03.26"]
[Round "3.1"]
[White "Yasin, Hur"]
[Black "Yurtseven, Melih"]
[Result "1-0"]
[ECO "B12"]
[WhiteElo "1931"]
[BlackElo "2388"]
[Annotator "ChessBase"]
[PlyCount "127"]
[EventDate "2022.03.25"]
[EventType "swiss"]
[EventCountry "TUR"]
[SourceTitle "playchess.com"]
[Source "ChessBase"]
[SourceQuality "1"]
[TimeControl "5400+30"]

1. e4 {[%emt 0:03:00]} c6 {[%emt 0:01:00]} 2. d4 {[%emt 0:00:30]} d5 {[%emt 0:00:30]} 3. e5 {[%emt 0:00:30]} Na6 {[%emt 0:00:00]} 4. c3 {[%emt 0:01:30]} Nc7 {[%emt 0:00:00]} 5. Bd3 {[%emt 0:00:30]} g6 {[%emt 0:00:00]} 6. h4 {[%emt 0:03:30]} Bf5 {[%emt 0:03:00]} 7. h5 {[%emt 0:04:30]} Qd7 {[%emt 0:00:30]} 8. hxg6 {[%emt 0:00:30]} fxg6 {[%emt 0:00:30]} 9. f3 {[%emt 0:04:30]} O-O-O {[%emt 0:01:30]} 10. g4 {[%emt 0:00:30]} Bxd3 {[%emt 0:01:30]} 11. Qxd3 {[%emt 0:00:00]} e6 {[%emt 0:00:30]} 12. Be3 {[%emt 0:01:00]} Qg7 {[%emt 0:04:30]} 13. Nd2 {[%emt 0:02:30]} h5 {[%emt 0:01:30]} 14. O-O-O {[%emt 0:02:30]} hxg4 {[%emt 0:02:30]} 15. Rxh8 {[%emt 0:01:30]} Qxh8 {[%emt 0:00:00]} 16. fxg4 {[%emt 0:00:30]} Bh6 {[%emt 0:13:00]} 17. g5 {[%emt 0:01:30]} Bg7 {[%emt 0:00:30]} 18. Qxg6 {[%emt 0:00:30]} Rf8 {[%emt 0:00:00]} 19. Qd3 {[%emt 0:02:30]} Ne7 {[%emt 0:05:00]} 20. Rf1 {[%emt 0:01:30]} Nf5 {[%emt 0:01:30]} 21. Bf4 {[%emt 0:02:30]} c5 {[%emt 0:02:30]} 22. dxc5 {[%emt 0:11:30]} Bxe5 {[%emt 0:00:30]} 23. Bxe5 {[%emt 0:03:30]} Qxe5 {[%emt 0:00:30]} 24. Ne2 {[%emt 0:00:30]} Qg7 {[%emt 0:03:30]} 25. Rg1 {[%emt 0:06:30]} Qe7 {[%emt 0:00:30]} 26. b4 {[%emt 0:01:30]} e5 {[%emt 0:02:30]} 27. Qh3 {[%emt 0:03:30]} Kb8 {[%emt 0:00:30]} 28. Rf1 {[%emt 0:02:30]} Ng7 {[%emt 0:04:30]} 29. Rxf8+ {[%emt 0:01:30]} Qxf8 {[%emt 0:00:00]} 30. Nf3 {[%emt 0:03:30]} e4 {[%emt 0:17:00]} 31. Ne5 {[%emt 0:03:30]} Ka8 {[%emt 0:00:30]} 32. Qd7 {[%emt 0:02:30]} Nge6 {[%emt 0:03:30]} 33. Nf7 {[%emt 0:03:30]} Kb8 {[%emt 0:06:30]} 34. Nd4 {[%emt 0:03:30]} Nf4 {[%emt 0:19:04]} 35. Kc2 {[%emt 0:03:30]} a6 {[%emt 0:03:07]} 36. c6 {[%emt 0:02:50]} b6 {[%emt 0:02:20]} 37. Qf5 {[%emt 0:02:58]} Ng2 {[%emt 0:01:04]} 38. Qf2 {[%emt 0:03:03]} Ne1+ {[%emt 0:00:19]} 39. Qxe1 {[%emt 0:01:23]} Qxf7 {[%emt 0:00:30]} 40. Qg3 {[%emt 0:00:00]} Qg6 {[%emt 0:00:00]} 41. Kd2 {[%emt 0:01:16]} b5 {[%emt 0:00:00]} 42. Ke3 {[%emt 0:01:29]} Kc8 {[%emt 0:01:51]} 43. Qh3+ {[%emt 0:01:58]} Kb8 {[%emt 0:00:02]} 44. Qh6 {[%emt 0:00:00]} Qg8 {[%emt 0:02:34]} 45. Qf6 {[%emt 0:00:47]} Qc8 {[%emt 0:00:49]} 46. Qf5 {[%emt 0:01:37]} Qh8 {[%emt 0:00:43]} 47. Qg4 {[%emt 0:03:35]} Qh1 {[%emt 0:00:35]} 48. Ne2 {[%emt 0:00:27]} d4+ {[%emt 0:00:44]} 49. Kxd4 {[%emt 0:00:50]} Qd1+ {[%emt 0:00:43]} 50. Kxe4 {[%emt 0:00:15]} Qb1+ {[%emt 0:00:30]} 51. Kf3 {[%emt 0:00:57]} Qg6 {[%emt 0:00:33]} 52. Nd4 {[%emt 0:03:41]} Qd3+ {[%emt 0:00:02]} 53. Kf4 {[%emt 0:00:57]} Qxc3 {[%emt 0:00:15]} 54. Qd7 {[%emt 0:00:26]} Qc1+ {[%emt 0:00:59]} 55. Kf5 {[%emt 0:00:33]} Qf1+ {[%emt 0:00:39]} 56. Kg6 {[%emt 0:00:36]} Qf4 {[%emt 0:00:35]} 57. Nf5 {[%emt 0:01:03]} Qe5 {[%emt 0:00:34]} 58. Qd8+ {[%emt 0:00:23]} Ka7 {[%emt 0:00:34]} 59. Qc8 {[%emt 0:00:10]} Qe6+ {[%emt 0:00:41]} 60. Qxe6 {[%emt 0:00:30]} Nxe6 {[%emt 0:00:00]} 61. Kf6 {[%emt 0:00:11]} Nf4 {[%emt 0:00:00]} 62. g6 {[%emt 0:00:11]} Kb6 {[%emt 0:00:00]} 63. Nd4 {[%emt 0:00:00]} Nh5+ {[%emt 0:00:43]} 64. Ke5 {[%emt 0:00:27]} 1-0

[Event "Turkish Cup 2022"]
[Site "Sakarya"]
[Date "2022.03.26"]
[Round "3.2"]
[White "Koksal, Ege"]
[Black "Ibik, Halit Yavuz"]
[Result "1-0"]
[ECO "E11"]
[WhiteElo "2343"]
[BlackElo "1996"]
[Annotator "ChessBase"]
[PlyCount "73"]
[EventDate "2022.03.25"]
[EventType "swiss"]
[EventCountry "TUR"]
[SourceTitle "playchess.com"]
[Source "ChessBase"]
[SourceQuality "1"]
[TimeControl "5400+30"]

1. d4 {[%emt 0:01:00]} d5 {[%emt 0:02:00]} 2. c4 {[%emt 0:00:30]} e6 {[%emt 0:03:30]} 3. Nf3 {[%emt 0:00:30]} Nf6 {[%emt 0:00:30]} 4. g3 {[%emt 0:00:30]} c6 {[%emt 0:00:30]} 5. Qc2 {[%emt 0:00:00]} Be7 {[%emt 0:03:30]} 6. Bg2 {[%emt 0:01:00]} b6 {[%emt 0:01:30]} 7. O-O {[%emt 0:00:30]} O-O {[%emt 0:00:30]} 8. Bf4 {[%emt 0:08:30]} Ba6 {[%emt 0:11:30]} 9. Nbd2 {[%emt 0:01:30]} Nbd7 {[%emt 0:02:30]} 10. Rfd1 {[%emt 0:03:30]} Nh5 {[%emt 0:23:30]} 11. Ne5 {[%emt 0:13:30]} Nxe5 {[%emt 0:04:30]} 12. Bxe5 {[%emt 0:01:30]} f6 {[%emt 0:01:30]} 13. Bf4 {[%emt 0:00:00]} g5 {[%emt 0:05:30]} 14. Be3 {[%emt 0:00:00]} f5 {[%emt 0:02:30]} 15. Qa4 {[%emt 0:04:30]} Bb7 {[%emt 0:01:30]} 16. cxd5 {[%emt 0:00:30]} cxd5 {[%emt 0:00:30]} 17. Nf3 {[%emt 0:00:30]} f4 {[%emt 0:08:30]} 18. Bd2 {[%emt 0:00:30]} a5 {[%emt 0:02:30]} 19. Ne5 {[%emt 0:00:30]} Bd6 {[%emt 0:03:30]} 20. Bh3 {[%emt 0:01:30]} Ng7 {[%emt 0:02:29]} 21. Qd7 {[%emt 0:07:30]} Bxe5 {[%emt 0:12:00]} 22. Bxe6+ {[%emt 0:00:30]} Nxe6 {[%emt 0:01:03]} 23. Qxe6+ {[%emt 0:00:30]} Rf7 {[%emt 0:00:00]} 24. dxe5 {[%emt 0:01:30]} Bc8 {[%emt 0:05:40]} 25. Qh6 {[%emt 0:01:30]} fxg3 {[%emt 0:00:58]} 26. hxg3 {[%emt 0:00:30]} Rg7 {[%emt 0:00:18]} 27. Bc3 {[%emt 0:00:30]} Rg6 {[%emt 0:00:16]} 28. Qh1 {[%emt 0:00:30]} Bb7 {[%emt 0:01:13]} 29. e4 {[%emt 0:00:30]} d4 {[%emt 0:00:12]} 30. Rxd4 {[%emt 0:00:30]} Qe7 {[%emt 0:00:46]} 31. Rad1 {[%emt 0:00:30]} Bc6 {[%emt 0:00:24]} 32. Rd6 {[%emt 0:01:30]} Be8 {[%emt 0:00:36]} 33. Qh3 {[%emt 0:04:30]} g4 {[%emt 0:00:31]} 34. Rxg6+ {[%emt 0:01:30]} Bxg6 {[%emt 0:00:30]} 35. Qxg4 {[%emt 0:00:00]} Rd8 {[%emt 0:00:00]} 36. f4 {[%emt 0:06:00]} Kf8 {[%emt 0:01:09]} 37. f5 {[%emt 0:00:30]} 1-0

[Event "Turkish Cup 2022"]
[Site "Sakarya"]
[Date "2022.03.26"]
[Round "3.3"]
[White "Daghan, Devran"]
[Black "Gunduz, Umut Erdem"]
[Result "1-0"]
[ECO "C56"]
[WhiteElo "1985"]
[BlackElo "2258"]
[Annotator "ChessBase"]
[PlyCount "165"]
[EventDate "2022.03.25"]
[EventType "swiss"]
[EventCountry "TUR"]
[SourceTitle "playchess.com"]
[Source "ChessBase"]
[SourceQuality "1"]
[TimeControl "5400+30"]

1. e4 {[%emt 0:05:00]} e5 {[%emt 0:01:00]} 2. Nf3 {[%emt 0:00:30]} Nc6 {[%emt 0:00:30]} 3. Bc4 {[%emt 0:00:30]} Nf6 {[%emt 0:00:30]} 4. d4 {[%emt 0:01:30]} exd4 {[%emt 0:01:30]} 5. Ng5 {[%emt 0:06:30]} d5 {[%emt 0:16:30]} 6. exd5 {[%emt 0:01:30]} Qe7+ {[%emt 0:01:30]} 7. Kf1 {[%emt 0:08:30]} Ne5 {[%emt 0:02:30]} 8. Qxd4 {[%emt 0:10:30]} h6 {[%emt 0:14:30]} 9. Ne4 {[%emt 0:13:30]} Nxc4 {[%emt 0:07:30]} 10. Nxf6+ {[%emt 0:02:30]} Qxf6 {[%emt 0:01:30]} 11. Qxc4 {[%emt 0:00:30]} Bd6 {[%emt 0:00:30]} 12. Nc3 {[%emt 0:03:30]} O-O {[%emt 0:00:30]} 13. Be3 {[%emt 0:17:30]} Bf5 {[%emt 0:01:30]} 14. Rc1 {[%emt 0:05:30]} Rfe8 {[%emt 0:00:30]} 15. Kg1 {[%emt 0:09:06]} Qg6 {[%emt 0:02:30]} 16. Ne2 {[%emt 0:02:02]} Re4 {[%emt 0:00:30]} 17. Qb3 {[%emt 0:03:36]} Rae8 {[%emt 0:13:30]} 18. Ng3 {[%emt 0:01:03]} Rg4 {[%emt 0:16:56]} 19. c4 {[%emt 0:03:09]} b6 {[%emt 0:05:50]} 20. Nxf5 {[%emt 0:03:42]} Qxf5 {[%emt 0:00:30]} 21. h3 {[%emt 0:00:30]} Rg6 {[%emt 0:00:30]} 22. Qc2 {[%emt 0:00:30]} Re4 {[%emt 0:00:30]} 23. Qd1 {[%emt 0:00:30]} Qe5 {[%emt 0:00:30]} 24. Rc3 {[%emt 0:00:30]} Bb4 {[%emt 0:00:30]} 25. Rd3 {[%emt 0:00:30]} Rxc4 {[%emt 0:00:30]} 26. g3 {[%emt 0:00:20]} Bd6 {[%emt 0:02:58]} 27. Bd4 {[%emt 0:00:31]} Qe4 {[%emt 0:01:53]} 28. Bc3 {[%emt 0:00:05]} Qf5 {[%emt 0:03:53]} 29. Kg2 {[%emt 0:00:44]} b5 {[%emt 0:01:10]} 30. a3 {[%emt 0:00:31]} Rf4 {[%emt 0:01:17]} 31. Rf3 {[%emt 0:00:32]} Rxf3 {[%emt 0:01:26]} 32. Qxf3 {[%emt 0:00:30]} Qc2 {[%emt 0:00:30]} 33. g4 {[%emt 0:00:00]} f5 {[%emt 0:00:33]} 34. Re1 {[%emt 0:00:05]} Kh7 {[%emt 0:00:31]} 35. Re2 {[%emt 0:01:19]} Qb1 {[%emt 0:00:18]} 36. Re1 {[%emt 0:00:46]} Qc2 {[%emt 0:00:02]} 37. Re2 {[%emt 0:00:19]} Qb1 {[%emt 0:01:03]} 38. Re1 {[%emt 0:00:34]} fxg4 {[%emt 0:00:37]} 39. hxg4 {[%emt 0:00:50]} Qc2 {[%emt 0:00:02]} 40. Re2 {[%emt 0:00:13]} Qb1 {[%emt 0:00:42]} 41. Re1 {[%emt 0:00:45]} Qc2 {[%emt 0:00:09]} 42. Re2 {[%emt 0:00:16]} Qd1 {[%emt 0:00:58]} 43. Qe4 {[%emt 0:00:28]} Qc1 {[%emt 0:00:31]} 44. Qf5 {[%emt 0:01:03]} Qg5 {[%emt 0:00:09]} 45. Kf3 {[%emt 0:00:00]} Qxf5+ {[%emt 0:00:42]} 46. gxf5 {[%emt 0:00:29]} Rg5 {[%emt 0:00:00]} 47. Ke4 {[%emt 0:00:39]} Rg4+ {[%emt 0:00:00]} 48. Kd3 {[%emt 0:00:18]} Rf4 {[%emt 0:00:00]} 49. f6 {[%emt 0:00:49]} gxf6 {[%emt 0:00:00]} 50. Bd4 {[%emt 0:00:00]} h5 {[%emt 0:00:48]} 51. Re8 {[%emt 0:01:07]} h4 {[%emt 0:00:15]} 52. Re1 {[%emt 0:00:04]} Kg6 {[%emt 0:01:19]} 53. Rg1+ {[%emt 0:00:50]} Kf5 {[%emt 0:00:02]} 54. Rg7 {[%emt 0:00:13]} a6 {[%emt 0:00:47]} 55. Be3 {[%emt 0:00:30]} Rc4 {[%emt 0:01:39]} 56. Rh7 {[%emt 0:00:27]} Ke5 {[%emt 0:00:56]} 57. Rh5+ {[%emt 0:01:00]} f5 {[%emt 0:00:14]} 58. f4+ {[%emt 0:00:06]} Kxd5 {[%emt 0:00:10]} 59. b3 {[%emt 0:00:25]} Rc6 {[%emt 0:00:56]} 60. Rxf5+ {[%emt 0:00:30]} Ke6 {[%emt 0:00:30]} 61. Rh5 {[%emt 0:00:00]} Be7 {[%emt 0:00:27]} 62. f5+ {[%emt 0:00:32]} Kf7 {[%emt 0:00:41]} 63. Rh7+ {[%emt 0:00:43]} Ke8 {[%emt 0:00:22]} 64. Bd4 {[%emt 0:00:33]} Bg5 {[%emt 0:00:42]} 65. Rh5 {[%emt 0:00:33]} Be7 {[%emt 0:00:29]} 66. Ke4 {[%emt 0:00:11]} Bxa3 {[%emt 0:00:30]} 67. f6 {[%emt 0:00:24]} Bf8 {[%emt 0:00:29]} 68. Rxh4 {[%emt 0:00:57]} Rc1 {[%emt 0:00:31]} 69. Rh7 {[%emt 0:00:18]} c5 {[%emt 0:00:49]} 70. Be5 {[%emt 0:00:17]} Rd1 {[%emt 0:00:08]} 71. Ra7 {[%emt 0:00:41]} Rd7 {[%emt 0:00:29]} 72. Rxa6 {[%emt 0:00:35]} Kf7 {[%emt 0:00:09]} 73. Kf5 {[%emt 0:00:00]} Rb7 {[%emt 0:01:18]} 74. Ra1 {[%emt 0:00:00]} c4 {[%emt 0:00:04]} 75. bxc4 {[%emt 0:00:36]} bxc4 {[%emt 0:00:01]} 76. Rh1 {[%emt 0:00:22]} Rd7 {[%emt 0:00:57]} 77. Rh7+ {[%emt 0:00:50]} Ke8 {[%emt 0:00:30]} 78. Rh4 {[%emt 0:00:00]} c3 {[%emt 0:00:35]} 79. Rc4 {[%emt 0:00:35]} Rd5 {[%emt 0:00:32]} 80. Ke6 {[%emt 0:02:03]} Rc5 {[%emt 0:00:30]} 81. f7+ {[%emt 0:00:00]} Kd8 {[%emt 0:00:02]} 82. Rxc5 {[%emt 0:00:18]} Bxc5 {[%emt 0:00:30]} 83. Bd6 {[%emt 0:00:00]} 1-0

[Event "Turkish Cup 2022"]
[Site "Sakarya"]
[Date "2022.03.26"]
[Round "3.4"]
[White "Isik, Alparslan"]
[Black "Kavri, Yusuf Eren"]
[Result "1-0"]
[ECO "E05"]
[WhiteElo "2328"]
[BlackElo "1886"]
[Annotator "ChessBase"]
[PlyCount "115"]
[EventDate "2022.03.25"]
[EventType "swiss"]
[EventCountry "TUR"]
[SourceTitle "playchess.com"]
[Source "ChessBase"]
[SourceQuality "1"]
[TimeControl "5400+30"]

1. Nf3 {[%emt 0:03:00]} Nf6 {[%emt 0:01:00]} 2. c4 {[%emt 0:00:30]} e6 {[%emt 0:00:30]} 3. g3 {[%emt 0:00:30]} d5 {[%emt 0:00:30]} 4. Bg2 {[%emt 0:00:30]} Be7 {[%emt 0:00:30]} 5. O-O {[%emt 0:00:30]} O-O {[%emt 0:00:30]} 6. d4 {[%emt 0:00:00]} dxc4 {[%emt 0:00:00]} 7. Qc2 {[%emt 0:00:00]} a6 {[%emt 0:00:00]} 8. a4 {[%emt 0:00:00]} Bd7 {[%emt 0:02:30]} 9. Rd1 {[%emt 0:00:00]} Bc6 {[%emt 0:04:30]} 10. Nc3 {[%emt 0:00:00]} a5 {[%emt 0:03:30]} 11. e4 {[%emt 0:00:00]} Na6 {[%emt 0:00:30]} 12. Ne5 {[%emt 0:00:30]} Nb4 {[%emt 0:04:30]} 13. Qe2 {[%emt 0:00:30]} h6 {[%emt 0:17:30]} 14. Qxc4 {[%emt 0:17:30]} Nd7 {[%emt 0:12:30]} 15. Ng4 {[%emt 0:10:30]} Nc2 {[%emt 0:10:30]} 16. Rb1 {[%emt 0:00:30]} h5 {[%emt 0:00:30]} 17. Qe2 {[%emt 0:11:30]} hxg4 {[%emt 0:05:30]} 18. Qxc2 {[%emt 0:01:30]} Nb6 {[%emt 0:01:30]} 19. b3 {[%emt 0:06:30]} Bg5 {[%emt 0:04:30]} 20. d5 {[%emt 0:02:30]} exd5 {[%emt 0:00:30]} 21. Nxd5 {[%emt 0:01:30]} Bxd5 {[%emt 0:02:30]} 22. exd5 {[%emt 0:00:00]} Be7 {[%emt 0:06:30]} 23. Be4 {[%emt 0:20:00]} Nd7 {[%emt 0:04:08]} 24. Bf5 {[%emt 0:00:30]} Ne5 {[%emt 0:01:19]} 25. Bb2 {[%emt 0:00:30]} Bd6 {[%emt 0:01:01]} 26. Qe4 {[%emt 0:02:30]} Re8 {[%emt 0:01:03]} 27. Bxg4 {[%emt 0:01:30]} Nxg4 {[%emt 0:07:32]} 28. Qxg4 {[%emt 0:00:30]} Be5 {[%emt 0:04:20]} 29. Bxe5 {[%emt 0:06:25]} Rxe5 {[%emt 0:00:31]} 30. Qc4 {[%emt 0:00:30]} Qd6 {[%emt 0:00:30]} 31. Rbc1 {[%emt 0:00:30]} Rae8 {[%emt 0:00:30]} 32. Kg2 {[%emt 0:00:30]} R8e7 {[%emt 0:00:30]} 33. Qc5 {[%emt 0:00:30]} Qxc5 {[%emt 0:00:34]} 34. Rxc5 {[%emt 0:00:30]} b6 {[%emt 0:00:30]} 35. Rc6 {[%emt 0:00:30]} Rf5 {[%emt 0:01:45]} 36. Rd2 {[%emt 0:01:16]} Rd7 {[%emt 0:03:13]} 37. d6 {[%emt 0:00:18]} Rxd6 {[%emt 0:00:00]} 38. Rdxd6 {[%emt 0:00:33]} cxd6 {[%emt 0:00:24]} 39. Rxb6 {[%emt 0:00:30]} Rd5 {[%emt 0:00:30]} 40. Kf3 {[%emt 0:00:00]} g6 {[%emt 0:00:21]} 41. Ke2 {[%emt 0:00:48]} Re5+ {[%emt 0:00:56]} 42. Kd2 {[%emt 0:00:44]} Rd5+ {[%emt 0:00:30]} 43. Kc3 {[%emt 0:00:30]} Rc5+ {[%emt 0:00:33]} 44. Kd2 {[%emt 0:01:22]} Rd5+ {[%emt 0:00:30]} 45. Kc1 {[%emt 0:00:00]} Rc5+ {[%emt 0:00:16]} 46. Kb1 {[%emt 0:00:00]} Rc3 {[%emt 0:00:26]} 47. f4 {[%emt 0:00:32]} d5 {[%emt 0:01:02]} 48. Kb2 {[%emt 0:00:35]} Rf3 {[%emt 0:00:06]} 49. Rb5 {[%emt 0:01:15]} d4 {[%emt 0:00:45]} 50. Rxa5 {[%emt 0:00:48]} Rf2+ {[%emt 0:00:14]} 51. Ka3 {[%emt 0:02:10]} d3 {[%emt 0:00:56]} 52. Rd5 {[%emt 0:00:30]} d2 {[%emt 0:00:30]} 53. a5 {[%emt 0:00:23]} Rxh2 {[%emt 0:00:00]} 54. Kb4 {[%emt 0:00:00]} Kg7 {[%emt 0:00:19]} 55. a6 {[%emt 0:00:31]} Kf6 {[%emt 0:00:12]} 56. a7 {[%emt 0:00:00]} d1=Q {[%emt 0:01:44]} 57. Rxd1 {[%emt 0:00:17]} Ra2 {[%emt 0:00:30]} 58. Rd7 {[%emt 0:00:00]} 1-0

[Event "Turkish Cup 2022"]
[Site "Sakarya"]
[Date "2022.03.26"]
[Round "3.5"]
[White "Akin, Kadir"]
[Black "Sevgi, Volkan"]
[Result "0-1"]
[ECO "B22"]
[WhiteElo "1964"]
[BlackElo "2344"]
[Annotator "ChessBase"]
[PlyCount "84"]
[EventDate "2022.03.25"]
[EventType "swiss"]
[EventCountry "TUR"]
[SourceTitle "playchess.com"]
[Source "ChessBase"]
[SourceQuality "1"]
[TimeControl "5400+30"]

1. e4 {[%emt 0:09:00]} c5 {[%emt 0:01:00]} 2. c3 {[%emt 0:00:00]} Qa5 {[%emt 0:00:00]} 3. Na3 {[%emt 0:03:00]} Nc6 {[%emt 0:00:00]} 4. Nf3 {[%emt 0:00:30]} e6 {[%emt 0:00:30]} 5. d4 {[%emt 0:05:30]} cxd4 {[%emt 0:03:30]} 6. Nc4 {[%emt 0:01:30]} Qd8 {[%emt 0:00:30]} 7. cxd4 {[%emt 0:00:30]} d5 {[%emt 0:00:00]} 8. exd5 {[%emt 0:00:00]} exd5 {[%emt 0:00:00]} 9. Nce5 {[%emt 0:00:00]} Bb4+ {[%emt 0:00:30]} 10. Bd2 {[%emt 0:00:30]} Qa5 {[%emt 0:00:30]} 11. a3 {[%emt 0:01:30]} Bxd2+ {[%emt 0:01:30]} 12. Qxd2 {[%emt 0:00:30]} Qxd2+ {[%emt 0:00:30]} 13. Kxd2 {[%emt 0:00:30]} Nge7 {[%emt 0:03:30]} 14. Bb5 {[%emt 0:00:30]} f6 {[%emt 0:00:00]} 15. Bxc6+ {[%emt 0:00:30]} bxc6 {[%emt 0:00:00]} 16. Nd3 {[%emt 0:00:00]} Bg4 {[%emt 0:00:00]} 17. Nfe1 {[%emt 0:01:00]} Kf7 {[%emt 0:01:00]} 18. Rc1 {[%emt 0:00:00]} Rhb8 {[%emt 0:00:30]} 19. Rc5 {[%emt 0:07:00]} a5 {[%emt 0:02:30]} 20. f3 {[%emt 0:04:30]} Bd7 {[%emt 0:04:30]} 21. Nc2 {[%emt 0:09:30]} Bf5 {[%emt 0:00:30]} 22. Rb1 {[%emt 0:00:00]} Rb6 {[%emt 0:05:30]} 23. g4 {[%emt 0:10:00]} Bxd3 {[%emt 0:00:30]} 24. Kxd3 {[%emt 0:00:30]} h5 {[%emt 0:00:30]} 25. h3 {[%emt 0:14:30]} Ng6 {[%emt 0:03:30]} 26. b4 {[%emt 0:07:30]} axb4 {[%emt 0:02:30]} 27. Rxb4 {[%emt 0:00:30]} Rxa3+ {[%emt 0:01:30]} 28. Nxa3 {[%emt 0:00:30]} Rxb4 {[%emt 0:00:00]} 29. Rxc6 {[%emt 0:01:30]} Rb3+ {[%emt 0:00:00]} 30. Rc3 {[%emt 0:00:30]} Nf4+ {[%emt 0:00:00]} 31. Kd2 {[%emt 0:00:30]} Rxc3 {[%emt 0:00:00]} 32. Kxc3 {[%emt 0:00:30]} h4 {[%emt 0:00:30]} 33. Kd2 {[%emt 0:00:00]} Nxh3 {[%emt 0:00:30]} 34. Ke3 {[%emt 0:00:00]} g5 {[%emt 0:04:30]} 35. Nb5 {[%emt 0:00:30]} Ke7 {[%emt 0:00:30]} 36. Nc7 {[%emt 0:01:30]} Nf4 {[%emt 0:00:00]} 37. Kf2 {[%emt 0:00:30]} Kd7 {[%emt 0:00:00]} 38. Na6 {[%emt 0:00:30]} Nd3+ {[%emt 0:00:30]} 39. Ke2 {[%emt 0:00:30]} h3 {[%emt 0:00:30]} 40. Kf1 {[%emt 0:00:00]} Kc6 {[%emt 0:00:30]} 41. Nb8+ {[%emt 0:00:00]} Kc7 {[%emt 0:00:30]} 42. Na6+ {[%emt 0:00:30]} Kb7 {[%emt 0:00:00]} 0-1